Cogmind - Beta 13 @@@ ROGUE MODE // 2024.04.06 @ 20:17:04 Player: gabr Result: Destroyed by as-76160 with Assembled Heavy Rifle Performance ------------- Evolutions (1) 500 Regions Visited (3) 600 Robots Destroyed (28) 140 Value Destroyed (636) 636 Prototype IDs (1) 20 Alien Tech Used (0) 0 Bonus (16) 16 TOTAL SCORE: 1912 Bonus ------- High Alert Combat Kills 16 Cogmind --------- Core Integrity 0/400 Matter 134/300 Energy 81/100 System Corruption 0% Temperature Cool (1) Movement Walking (120) Location -9/Mines Parts ------- > --- POWER (1) -------- (None) > --- PROPULSION (4) --- Carbon-fiber Leg > --- UTILITY (2) ------ Small Storage Unit > --- WEAPON (2) ------- Field Laser Field Laser > --- INVENTORY (8) ---- Aluminum Leg Targeting Computer Faulty Improved EM Shotgun Field Laser Improved Assault Rifle Mining Laser Peak State ------------ > --- POWER ------------ Light Ion Engine > --- PROPULSION ------- Carbon-fiber Leg Carbon-fiber Leg Carbon-fiber Leg Carbon-fiber Leg > --- UTILITY ---------- Small Storage Unit High-powered Tractor Beam > --- WEAPON ----------- Improved Grenade Launcher Improved Grenade Launcher > --- INVENTORY -------- Aluminum Leg Targeting Computer Improved EM Shotgun Field Laser Field Laser Field Laser Field Laser Improved Grenade Launcher [Rating: 24] Favorites ----------- Power Ion Engine Engine Ion Engine Propulsion Carbon-fiber Leg Leg Carbon-fiber Leg Utility Small Storage Unit Device High-powered Tractor Beam Storage Small Storage Unit Weapon Improved Grenade Launcher Energy Gun Medium Laser Ballistic Gun Assault Rifle Launcher Improved Grenade Launcher Special Weapon Mining Laser Build | -11 -10 -9 -9 ------- Run | Yrd Mat Mat Min Slots Evolved 2 | . . 2 . Power . | . . . . Propulsion 2 | . . 2 . Utility . | . . . . Weapon . | . . . . Parts Attached 34 | 8 11 12 3 Power 3 | 2 . 1 . Engine 3 | 2 . 1 . Core . | . . . . Reactor . | . . . . Propulsion 10 | 2 4 4 . Treads . | . . . . Leg 10 | 2 4 4 . Wheel . | . . . . Hover . | . . . . Flight . | . . . . Utility 4 | 2 1 1 . Device 3 | 1 1 1 . Storage 1 | 1 . . . Processor . | . . . . Hackware . | . . . . Protection . | . . . . Artifact . | . . . . Weapon 17 | 2 6 6 3 Energy Gun 6 | 1 2 . 3 Energy Cannon . | . . . . Ballistic Gun 4 | 1 2 1 . Ballistic Cannon . | . . . . Launcher 6 | . 2 4 . Special Weapon 1 | . . 1 . Impact Weapon . | . . . . Slashing Weapon . | . . . . Piercing Weapon . | . . . . Special Melee Weapon . | . . . . Unidentified Prototypes 1 | . . 1 . Parts Lost 10 | . 1 2 7 Power 2 | . . 1 1 Propulsion 3 | . . . 3 Utility 3 | . 1 1 1 Weapon 2 | . . . 2 Highest Loss Streak 7 | . 1 1 7 To Critical Strikes . | . . . . Average Slot Usage (%) 93 | . 96 92 78 Engine 11 | . 14 9 6 Leg 34 | . 28 42 33 Device 9 | . 10 9 6 Storage 12 | . 14 11 11 Energy Gun 9 | . 17 . 9 Ballistic Gun 5 | . 10 . . Launcher 8 | . . 20 7 Naked Turns . | . . . . Heaviest Build 23 | 15 17 23 18 Greatest Support 60 | 20 20 60 60 Greatest Overweight (x) . | . . . . Average Overweight (x) . | . . . . Largest Inventory Capacity 8 | 8 8 8 8 Average Capacity 7 | 7 8 8 8 Most Carried 8 | 7 8 8 8 Average Carried 7 | 3 7 7 7 Final Capacity 8 | 8 8 8 8 Final Carried 8 | 7 8 8 6 Class Distribution -------------------- 100% | Mutant Dominant Class ---------------- Mutant | -10/Materials Mutant | -9/Materials Mutant | -9/Mines Resources | -11 -10 -9 -9 ----------- Run | Yrd Mat Mat Min Matter Collected 741 | 263 170 200 108 Remotely 495 | 160 170 165 . Salvage Created 674 | 80 280 287 27 Parts 44 | 2 13 29 . Haulers Intercepted 2 | . . 2 . Recyclers Shooed 1 | . . 1 . Parts Field Recycled . | . . . . Retrieved Matter . | . . . . Parts Self-Destructed . | . . . . Prevented . | . . . . Kills | -11 -10 -9 -9 ------- Run | Yrd Mat Mat Min Combat Hostiles Destroyed 15 | . 4 7 4 Guns 5 | . 4 . 1 AOE 10 | . . 7 3 Classes Destroyed 11 | 1 1 7 2 Worker 4 | . . 3 1 Builder 5 | . . 5 . Hauler 2 | . . 2 . Recycler 2 | 1 1 . . Mechanic 1 | . . 1 . Watcher 2 | . . 2 . Grunt 9 | . 4 5 . Brawler 1 | . . 1 . Sentry 1 | . . 1 . Demolisher 1 | . . . 1 Assembled 3 | . . . 3 Best Kill Streak 9 | 1 2 9 3 Combat Bots Only 3 | . 1 3 3 Max Kills in Single Turn 5 | 1 1 5 3 Gunslinging . | . . . . Exploded 3 | . . 2 3 Melee . | . . . . Uniques/NPCs Destroyed . | . . . . Combat | -11 -10 -9 -9 -------- Run | Yrd Mat Mat Min Hostile Shots Fired 117 | . 47 38 32 Missed 26 | . 9 11 6 Damage Taken 1900 | . 549 455 896 Core 478 | . 74 102 302 Absorbed by Shields . | . . . . Core Remaining (%) 85 | 100 70 . . Volleys Fired 61 | 2 30 14 15 Largest 2 | 2 2 2 2 Hottest 126 | 70 90 72 126 Shots Fired 111 | 4 60 28 19 Gun 82 | 4 60 . 18 Cannon . | . . . . Launcher 29 | . . 28 1 Special . | . . . . Kinetic 16 | 2 14 . . Thermal 34 | 2 14 . 18 Explosive 29 | . . 28 1 Electromagnetic 32 | . 32 . . Robot Hit Streak 11 | 1 11 10 3 Robot Miss Streak 4 | 2 4 3 4 Penetration Max . | . . . . Secondary Targets 1 | . 1 . . Max Gunslinging Chain 1 | . 1 . . Shots Hit Robots 58 | 2 35 11 10 Core Hits 47 | 2 9 29 7 Critical Kills . | . . . . Critical Parts Destroyed . | . . . . Critical Strikes . | . . . . Melee Attacks . | . . . . Impact . | . . . . Slashing . | . . . . Piercing . | . . . . Sneak Attacks . | . . . . Combat Hostiles . | . . . . Follow-up Attacks . | . . . . Damage Inflicted 2396 | 38 531 1505 322 Guns 709 | 38 500 . 171 Cannons . | . . . . Explosions 1687 | . 31 1505 151 Melee . | . . . . Ramming . | . . . . Kinetic 188 | 25 163 . . Thermal 313 | 13 129 . 171 Explosive 1656 | . . 1505 151 Electromagnetic 239 | . 239 . . Impact . | . . . . Slashing . | . . . . Piercing . | . . . . Highest Corruption . | . . . . Average Corruption . | . . . . Corruption Purged . | . . . . Corruption Blocked . | . . . . Overload Shots . | . . . . Overflow Damage 28 | . . 28 . Projectiles . | . . . . Explosions 28 | . . 28 . Melee . | . . . . Knockbacks . | . . . . Impact . | . . . . Kinetic . | . . . . Secondary . | . . . . Self-Inflicted Damage 139 | . 42 97 . Shots 3 | . 1 2 . Rammed . | . . . . Targets Rammed . | . . . . Kicked . | . . . . Crushed . | . . . . Highest Temperature 388 | 9 388 24 104 Average Temperature 83 | 6 118 6 23 Received Heat Transfer 422 | . 279 123 20 Siege Activations . | . . . . Robots Corrupted . | . . . . Combat Hostiles . | . . . . Parts Fried 1 | . 1 . . Impact Corruptions . | . . . . Robots Melted . | . . . . Combat Hostiles . | . . . . Parts Melted . | . . . . Heat Transferred 753 | 37 346 . 370 Parts Sabotaged . | . . . . Parts Stolen . | . . . . Parts Stripped . | . . . . Power Chain Reactions 1 | . 1 . . Alert | -11 -10 -9 -9 ------- Run | Yrd Mat Mat Min Peak Influence 493 | 5 106 493 127 Initial 120 | . 3 44 120 Average 113 | 1 22 254 111 Maximum Alert Level 2 | . . 2 . Low Security (%) 76 | 100 100 35 100 Level 1 17 | . . 50 . Level 2 5 | . . 14 . Level 3 . | . . . . Level 4 . | . . . . Level 5 . | . . . . High Security . | . . . . Max Security . | . . . . Squads Dispatched 1 | . . 1 . Investigation . | . . . . Extermination . | . . . . Reinforcement 1 | . . 1 . Assault . | . . . . Garrison . | . . . . Intercept . | . . . . Searches Triggered . | . . . . Construction Impeded 1 | . . 1 . Haulers Reinforced . | . . . . Active Scanning Responses . | . . . . Cargo Convoy Interrupts . | . . . . Stealth | -11 -10 -9 -9 --------- Run | Yrd Mat Mat Min Distress Signals 3 | . 1 2 . Communications Jammed . | . . . . Distress Signals . | . . . . Times Spotted 35 | . 8 14 13 Peak Tracking Total 5 | . 4 4 5 Tactical Retreats 2 | . 1 . 1 Traps | -11 -10 -9 -9 ------- Run | Yrd Mat Mat Min Traps Triggered . | . . . . Indirectly . | . . . . Trap Hack Attempts . | . . . . Triggered . | . . . . Disarmed . | . . . . Reprogrammed . | . . . . Reused . | . . . . Traps Extracted . | . . . . Installed . | . . . . Triggered . | . . . . Machines | -11 -10 -9 -9 ---------- Run | Yrd Mat Mat Min Machines Disabled 8 | . . 7 1 Max in Single Turn 2 | . . 2 1 Machines Repaired . | . . . . Machines Dismantled . | . . . . Machines Sabotaged . | . . . . Overloaded Fab Kills . | . . . . Hacking | -11 -10 -9 -9 --------- Run | Yrd Mat Mat Min Machines Accessed 1 | . 1 . . Terminals . | . . . . Fabricators . | . . . . Repair Stations . | . . . . Recycling Units 1 | . 1 . . Scanalyzers . | . . . . Garrison Access . | . . . . Total Hacks 5 | . 5 . . Successful 2 | . 2 . . Failed 3 | . 3 . . Catastrophic . | . . . . Database Lockouts . | . . . . Manual 4 | . 4 . . Terminals . | . . . . Fabricators . | . . . . Repair Stations . | . . . . Recycling Units 5 | . 5 . . Scanalyzers . | . . . . Garrison Access . | . . . . Terminal Hacks . | . . . . Fabricator Hacks . | . . . . Repair Station Hacks . | . . . . Recycling Unit Hacks 1 | . 1 . . Report Inventory 1 | . 1 . . Scanalyzer . | . . . . Garrison Access Hacks . | . . . . Unauthorized Hacks 1 | . 1 . . Terminals . | . . . . Fabricators . | . . . . Repair Stations . | . . . . Recycling Units 1 | . 1 . . Monitor 1 | . 1 . . Scanalyzers . | . . . . Garrison Access . | . . . . Data Cores Recovered . | . . . . Used . | . . . . Hacking Detections 1 | . 1 . . Full Trace Events 1 | . 1 . . Feedback Events . | . . . . Feedback Blocked . | . . . . Robot Schematics Acquired . | . . . . Robots Built . | . . . . Authchips . | . . . . Time . | . . . . Total Robot Build Rating . | . . . . Part Schematics Acquired . | . . . . Parts Built . | . . . . Authchips . | . . . . Time . | . . . . Total Part Build Rating . | . . . . Parts Repaired . | . . . . Time . | . . . . Parts Recycled . | . . . . Recycled Matter . | . . . . Retrieved Matter . | . . . . Retrieved Components . | . . . . Parts Scanalyzed . | . . . . Part Schematics Acquired . | . . . . Parts Damaged . | . . . . Bothacking | -11 -10 -9 -9 ------------ Run | Yrd Mat Mat Min Used RIF Installer . | . . . . Robots Hacked . | . . . . Non-combat . | . . . . Combat . | . . . . Robot Hacks Applied . | . . . . Relay Couplers Released . | . . . . Fabnet Peak Effective % . | . . . . Robots Rewired . | . . . . Allies Hacked . | . . . . Hacks Repelled . | . . . . Allies | -11 -10 -9 -9 -------- Run | Yrd Mat Mat Min Total Allies . | . . . . Largest Group . | . . . . Highest-Rated Group . | . . . . Highest-Rated Ally . | . . . . Total Orders . | . . . . Ally Attacks . | . . . . Total Damage . | . . . . Kills . | . . . . Allies Corrupted . | . . . . Allies Melted . | . . . . Intel | -11 -10 -9 -9 ------- Run | Yrd Mat Mat Min Robot Analysis Total . | . . . . Derelict Logs Recovered . | . . . . Drone Launches . | . . . . Drone Recoveries . | . . . . Exploration | -11 -10 -9 -9 ------------- Run | Yrd Mat Mat Min Turns Passed 1544 | 84 740 548 172 Spaces Moved 798 | 51 245 396 106 Core 1 | 1 . . . Treads . | . . . . Legs 797 | 50 245 396 106 Wheels . | . . . . Hover . | . . . . Flight . | . . . . Fastest Speed 50 | 50 120 120 120 Average Speed 119 | 118 120 120 120 Slowest Speed 120 | 120 120 120 120 Overloaded Moves . | . . . . Propulsion Burnouts . | . . . . Robots Hopped . | . . . . Cave-ins Triggered . | . . . . Exploration Rate (%) 24 | 5 29 35 27 Regions Visited 3 Branch Regions 1 Pre-discovered Areas . | . . . . Known Exits Taken . | . . . . Unknown Exits Taken 3 | 1 1 1 . Scrap Searched . | . . . . Spaces Dug . | . . . . Terrain Destroyed 133 | . 6 120 7 Melee . | . . . . Projectile . | . . . . AOE 133 | . 6 120 7 Terrain Rammed . | . . . . Walls Destroyed . | . . . . Machines Disabled . | . . . . Actions | -11 -10 -9 -9 --------- Run | Yrd Mat Mat Min Total 1275 | 66 633 444 132 Wait 350 | . 337 5 8 Move 795 | 50 244 395 106 Hop . | . . . . Pick Up 13 | 6 1 6 . Fast Attach 19 | 7 6 6 . Attach 3 | . . 1 2 Detach . | . . . . Swap 12 | 1 5 5 1 Drop 22 | . 10 12 . Fire 61 | 2 30 14 15 Melee . | . . . . Ram . | . . . . Kick . | . . . . Crush . | . . . . Escape Stasis . | . . . . Rewire . | . . . . Trap . | . . . . Miscellaneous . | . . . . Route ------- -11/Scrapyard -10/Materials -9/Materials -9/Mines History --------- Turn | Location | Event 5 | -11/Scrapyard | Discovered new exit (range 16) 85 | -11/Scrapyard | Entered Materials 306 | -10/Materials | Build established: Mutant 788 | -10/Materials | Discovered new exit (range 15) 825 | -10/Materials | Entered another Materials area 825 | -9/Materials | Evolved 2 slots: Propulsion x2 1351 | -9/Materials | Discovered new exit (range 11) 1373 | -9/Materials | Entered Mines 1433 | -9/Mines | Assembled infested the area 1485 | -9/Mines | Core integrity fell below 50% 1502 | -9/Mines | Core integrity fell below 20% 1536 | -9/Mines | Lost 7 parts (1p3n1u2w) 1545 | -9/Mines | Destroyed by as-76160 with Assembled Heavy Rifle Last Messages --------------- 01492_ The unstable cave ceiling collapses. 01492_ Carbon-fiber Leg destroyed. 01492_ Imp. Grenade Launcher destroyed. 01492_ U-05 Engineer lays Concrete. 01495_ K-01 Serf collects debris. 01496_ U-05 Engineer lays Concrete. 01499_ U-05 Engineer builds a Wall. 01499_ as-78577 destroyed. 01500_ K-01 Serf destroyed. 01501_ The unstable cave ceiling collapses. 01503_ U-05 Engineer lays Concrete. 01505_ Field Laser destroyed. 01505_ U-05 Engineer destroyed. 01506_ The unstable cave ceiling collapses. 01508_ D-53 Grenadier destroyed. 01509_ The unstable cave ceiling collapses. 01516_ R-06 Scavenger collects Terrain Scan Processor. 01517_ Acquired 108 matter. 01534_ Laser Drill disabled. 01541_ Knocked back. Map ----- +----------------------------------------------------+ | | | | | | | ?????????????????????????????????????????? | | ?????????????????????????????????????????? | | ??????????????????#########?####?????????? | | ???####??????????## ### #######???? | | ??## ####??????# ##### | | ??# ##?????# # | | ??# #?????# """ | | ??# #??????# """ | | ???# #???????# "" ## | | ????# ##???????## #### | | ????# ##????????## #####??# | | ????# ##???????## ##?????# # | | ????## ####????# ##????# # | | ?????# k ##???# #????# | | ?????# #???# ##??### | | ?????## ##??# ###??## | | ??????### #### aa #????# | | ????????## ##a #????# # | | ?????????## ## ###????# | | ??????????# ### a ##??????## ### | | ??????????# #?## #????????###?#### # | | ?????????## #### #??????????????#### | | ??????# k @## #?????????????????## | | ?????????####### ## #??????????????????? | | ???????????????# ## #??????????????????? | | ???????????????# ## #??????????????????? | | ??????????????? #??????????????????? | | ??????????????# """ #??????????????????? | | ??????????????# """ ??????????????????? | | ??????????????# """ ??????????????????? | | ??????????????# ??????????????????? | | ??????????????## ## ?????????????????? | | ????????????????????# ?????????????????? | | ?????????????????????## ?????????????????? | | ?????????????????????????????????????????? | | ?????????????????????????????????????????? | | ?????????????????????????????????????????? | | ?????????????????????????????????????????? | | ?????????????????????????????????????????? | | ?????????????????????????????????????????? | | ?????????????????????????????????????????? | | ?????????????????????????????????????????? | | ?????????????????????????????????????????? | | ?????????????????????????????????????????? | | ?????????????????????????????????????????? | | ?????????????????????????????????????????? | | ?????????????????????????????????????????? | +----------------------------------------------------+ Best States ------------- Heat Dissipation 28 Energy Generation 10 Energy Capacity 250 Matter Stores 300 Matter Capacity 300 Sight Range 16 Terrain Scan Density 10 Evasion (%) 55 Item Schematics ----------------- None Robot Schematics ------------------ None Fabricated ------------ Nothing Alien Tech Used ----------------- None Achievements -------------- None Challenges ------------ None Game ------ Seed BiomechanicalServoRifle Manual? 0 Play Time 00:10:44 Cumulative 56.0 hours Start 2024.04.06 @ 20:08:03 End 2024.04.06 @ 20:17:04 Sessions 1 Manual Loads 0 Difficulty Rogue Special Mode None Game No. 126 Rogue 126 Adventurer 0 Explorer 0 Win Type - Total 0 Types 0/0/0/0/0/0/0/0/0 Lore% 23 Gallery% 38 Achievement% 28 Wizard Run 0 Options --------- Layout 0 ASCII 0 Keyboard 1 Movement Numpad Keybinds 0 Fullscreen 1 Font 24/Terminus Map View 76x50 Zoom Use 0% Tactical HUD 1 Map Filters NONE Filters NONE Steam 1 RUN: 9716dbda-2cc0-4b0e-b885-15875b9a8001